bitfinex/quotes_SOLUSD_20240808
["timestamp","ask_amount","ask_price","bid_price","bid_amount"]
[1723122029038,88.3771,156.32,156.26,6.3994]
[1723122029241,88.3771,156.32,156.19,20.0]
[1723122029242,6.3975,156.31,156.25,6.3999]
[1723122029658,81.98,156.32,156.26,6.3995]
[1723122029862,81.98,156.32,156.27,6.3991]
[1723122030101,43.44,156.36,156.19,20.0]
[1723122030237,13.318,156.39,156.2,45.0]
[1723122030431,6.68783151,156.36,156.25,13.1357]
[1723122030758,16.30295162,156.42,156.25,13.1357]
[1723122030759,6.3947,156.38,156.32,6.397]
[1723122031064,92.00235295,156.4,156.33,6.3967]
[1723122031268,16.30295162,156.42,156.34,27.67499427]
[1723122031269,0.31995162,156.42,156.34,27.67499427]
[1723122031444,0.31995162,156.42,156.34,72.67499427]
[1723122031651,0.31995162,156.42,156.34,27.67499427]
[1723122031841,6.3914,156.46,156.34,26.3963]
[1723122031842,43.44,156.46,156.34,26.3963]
[1723122032056,59.4185,156.46,156.34,6.3963]
[1723122032240,6.3937,156.41,156.34,6.3963]
[1723122032550,59.4185,156.46,156.34,6.3963]
[1723122032551,43.44,156.42,156.34,6.3963]
[1723122032766,6.3942,156.39,156.33,6.3966]
[1723122032984,43.44,156.42,156.31,6.3974]
[1723122033263,43.44,156.42,156.25,14.41497948]
[1723122033264,54.5245,156.41,156.26,1.27906699]
[1723122033447,6.3956,156.36,156.25,13.1357]
[1723122033653,49.8346,156.38,156.25,13.1357]
[1723122033877,43.44,156.38,156.33,6.3967]
[1723122034064,6.3953,156.37,156.25,13.1357]
[1723122034265,43.75995162,156.42,156.26,1.27936471]
[1723122034456,43.75995162,156.42,156.27,1.27933078]
[1723122034798,0.31995162,156.42,156.34,6.3963]
[1723122035086,32.6411,156.44,156.34,26.3963]
[1723122035248,32.6411,156.44,156.33,6.3967]
[1723122035452,32.6411,156.44,156.26,45.0]
[1723122035453,15.9836,156.41,156.26,45.0]
[1723122035686,6.3955,156.36,156.3,6.3978]
[1723122035861,3.15813505,156.4,156.25,13.1357]
[1723122036053,6.3945,156.39,156.33,6.3963]
[1723122036383,48.622,156.44,156.32,6.3968]
[1723122036567,0.17,156.34,156.33,6.3967]
[1723122037686,48.622,156.44,156.34,6.3963]
[1723122037852,6.3927,156.43,156.34,6.3963]
[1723122038053,32.6411,156.44,156.34,6.3963]
[1723122038297,89.1143,156.5,156.34,71.3963]
[1723122038449,45.6743,156.5,156.34,71.3963]
[1723122038654,6.3902,156.49,156.44,6.3921]
[1723122038963,44.2981843,156.51,156.36,12.5822]
[1723122039161,0.8581843,156.51,156.37,86.6181912]
[1723122039366,0.8581843,156.51,156.48,6.3904]
[1723122039683,0.8581843,156.51,156.5,6.3897]
[1723122040677,1.17813592,156.51,156.5,6.3897]
[1723122041868,1.17813592,156.51,156.49,6.3901]
[1723122042073,1.17813592,156.51,156.36,32.5822]
[1723122042074,1.17813592,156.51,156.39,1.27795898]
[1723122042278,1.17813592,156.51,156.39,1.27830061]
[1723122042565,1.17813592,156.51,156.4,1.27830879]
[1723122042795,6.3907,156.48,156.41,6.393]
[1723122042999,51.731,156.47,156.36,12.5822]
[1723122043196,51.731,156.47,156.31,12.5854]
[1723122043197,45.65995162,156.47,156.31,12.5854]
[1723122043498,6.3918,156.45,156.39,6.394]
[1723122043663,45.17,156.44,156.31,12.5854]
[1723122043867,45.17,156.43,156.38,6.3946]
[1723122044176,6.3938,156.4,156.34,6.3962]
[1723122044491,0.34,156.39,156.25,13.1722]
[1723122044687,51.7342,156.39,156.33,6.3963]
[1723122045114,45.34,156.39,156.36,6.3954]
[1723122045263,45.34,156.39,156.25,13.1722]
[1723122045700,45.34,156.39,156.26,1.27769976]
[1723122045881,45.34,156.39,156.25,13.1722]
[1723122045882,6.3951,156.37,156.31,6.3975]
[1723122046068,0.34,156.36,156.32,6.397]
[1723122046266,0.34,156.36,156.25,12.44989976]
[1723122046477,0.34,156.36,156.3,6.3977]
[1723122046679,6.7354,156.36,156.31,6.3974]
[1723122046989,45.0,156.35,156.3,6.3976]
[1723122047170,0.34,156.34,156.3,6.3976]
[1723122047370,0.34,156.34,156.25,12.44989976]
[1723122047608,0.34,156.34,156.28,6.3984]
[1723122047893,0.34,156.34,156.19,31.5893]
[1723122048198,6.3987,156.28,156.22,6.4008]
[1723122048374,0.17,156.27,156.15,1.27991823]
[1723122048577,45.34,156.27,156.15,1.27991823]
[1723122048782,0.34,156.27,156.26,6.3995]
[1723122048990,0.34,156.27,156.15,14.46551823]
[1723122049286,43.44,156.24,156.1,13.2416]
[1723122049509,46.61769976,156.23,156.1,13.2416]
[1723122049715,6.4018,156.21,156.15,6.4039]
[1723122049883,51.742,156.2,156.15,6.4039]
[1723122050087,7.68019976,156.19,156.13,6.4045]
[1723122050290,6.4034,156.17,156.11,6.4055]
[1723122050614,46.61769976,156.16,156.05,13.2661]
[1723122050791,45.0,156.15,156.05,13.2661]
[1723122050998,0.17,156.14,156.05,13.2661]
[1723122051493,0.17,156.1,156.09,6.4065]
[1723122051901,0.17,156.14,156.13,6.4049]
[1723122052118,0.34,156.14,156.13,6.4049]
[1723122053000,38.88,156.14,156.0,13.3221]
[1723122053188,38.54,156.12,156.0,13.3221]
[1723122053390,0.34,156.11,156.1,6.4061]
[1723122053694,0.34,156.11,156.0,13.3221]
[1723122054005,0.34,156.12,156.07,6.407]
[1723122054190,44.9457,156.11,155.96,0.8581843]
[1723122054389,85.15769976,156.1,156.05,6.4081]
[1723122054591,85.15769976,156.1,155.96,0.8581843]
[1723122054784,38.54,156.08,156.03,6.4087]
[1723122055000,83.88,156.07,155.96,0.8581843]
[1723122055300,38.54,156.04,155.96,0.8581843]
[1723122055503,45.34,156.03,155.96,0.8581843]
[1723122055706,45.34,156.03,156.0,6.4101]
[1723122055901,0.34,156.03,156.02,6.4094]
[1723122056315,6.4049,156.13,156.07,6.4073]
[1723122056607,73.7236,156.16,156.04,6.4085]
[1723122056608,6.4064,156.1,156.04,6.4085]
[1723122056783,45.34,156.09,155.96,0.8581843]
[1723122056983,38.54,156.07,155.96,0.8581843]
[1723122057212,45.34,156.06,156.05,6.4082]
[1723122057388,30.34,156.06,156.05,6.4082]
[1723122057786,75.34,156.06,156.05,6.4082]
[1723122058003,30.0,156.06,156.05,6.4082]
[1723122058509,30.0,156.06,155.96,2.12704067]
[1723122058510,30.0,156.06,155.96,0.8581843]
[1723122058685,30.0,156.06,156.05,6.4082]
[1723122059080,30.0,156.06,156.01,6.4094]
[1723122059407,68.54,156.06,155.96,0.8581843]
[1723122059610,68.54,156.06,156.05,6.4082]
[1723122059611,30.0,156.06,156.05,6.4082]
[1723122059812,30.34,156.06,156.05,6.4082]
[1723122060188,30.34,156.06,156.04,6.4085]
[1723122060397,30.17,156.06,156.05,6.4082]
[1723122060599,38.54,156.11,155.96,0.8581843]
[1723122060889,39.81769976,156.11,155.96,0.8581843]
[1723122061301,30.0,156.04,155.96,0.8581843]
[1723122061515,1.27769976,156.03,155.98,6.411]
[1723122061692,1.27769976,156.03,155.96,0.8581843]
[1723122061693,38.54,156.03,155.96,0.8581843]
[1723122061892,38.54,156.0,155.96,0.8581843]
[1723122062088,90.2907,155.99,155.96,0.8581843]
[1723122062291,83.54,155.98,155.96,0.8581843]
[1723122062604,76.56909976,155.97,155.96,0.8581843]
[1723122062795,76.56909976,155.97,155.82,13.0194]
[1723122062796,38.54,155.95,155.82,13.0194]
[1723122062999,38.54,155.93,155.8,0.8581843]
[1723122063202,46.61769976,155.94,155.82,6.4173]
[1723122063203,6.4154,155.88,155.82,6.4173]
[1723122063515,0.17,155.87,155.8,0.8581843]
[1723122063818,38.54,155.86,155.8,0.8581843]
[1723122064030,0.34,155.87,155.86,6.416]
[1723122064243,0.34,155.87,155.8,0.8581843]
[1723122064520,30.0,155.85,155.84,6.4168]
[1723122065332,56.4253,156.0,155.83,1.28288488]
[1723122065609,43.44,156.04,155.84,20.0]
[1723122065813,1.27769976,156.03,155.91,6.4135]
[1723122066103,44.9507,155.99,155.83,14.26553261]
[1723122066408,30.0,155.91,155.88,6.415]
[1723122066815,74.9539,155.91,155.84,6.4164]
[1723122067005,74.9539,155.91,155.85,6.4163]
[1723122067006,68.54,155.91,155.85,6.4163]
[1723122067214,68.54,155.91,155.8,0.8581843]
[1723122067523,0.17,155.9,155.8,0.8581843]
[1723122067840,30.0,155.89,155.88,6.4151]
[1723122068335,1.27769976,155.95,155.8,0.8581843]
[1723122068692,1.27769976,155.95,155.87,16.038]
[1723122068946,1.27769976,155.94,155.8,0.8581843]
[1723122069226,6.4147,155.89,155.8,0.8581843]
[1723122069409,17.30959976,155.94,155.8,0.8581843]
[1723122069410,6.4143,155.91,155.8,0.8581843]
[1723122069614,6.4147,155.89,155.8,0.8581843]
[1723122069814,39.81769976,155.88,155.8,0.8581843]
[1723122070215,38.54,155.86,155.8,0.8581843]
[1723122070397,75.34,155.87,155.84,6.4167]
[1723122070398,0.34,155.85,155.84,6.4167]
[1723122070795,0.34,155.85,155.82,16.0435]
[1723122071019,0.17,155.84,155.83,6.4172]
[1723122071434,20.0,156.04,155.8,0.8581843]
[1723122071435,1.27769976,155.97,155.8,0.8581843]
[1723122071739,61.9459,155.99,155.93,6.4129]
[1723122071935,38.54,155.98,155.91,16.0341]
[1723122072238,55.5349,155.99,155.8,0.8581843]
[1723122072239,1.27769976,155.99,155.92,16.0336]
[1723122072817,38.54,155.96,155.92,22.4471]
[1723122073243,6.4127,155.94,155.84,12.3333]
[1723122073436,38.54,155.92,155.8,0.8581843]
[1723122073648,6.4147,155.89,155.83,6.4171]
[1723122073941,38.71,155.88,155.84,6.4167]
[1723122074116,0.17,155.88,155.86,6.4159]
[1723122074319,0.17,155.88,155.87,6.4156]
[1723122076015,43.44,155.95,155.82,33.0896]
[1723122076016,1.27769976,155.95,155.82,33.0896]
[1723122076341,38.54,155.97,155.83,65.0]
[1723122076642,38.54,155.95,155.83,20.0]
[1723122076833,38.54,155.95,155.87,6.4152]
[1723122076834,38.54,155.92,155.87,6.4152]
[1723122077008,38.54,155.92,155.83,20.0]
[1723122077009,38.54,155.92,155.88,6.415]
[1723122077214,38.54,155.9,155.83,20.0]
[1723122077439,44.9544,155.9,155.8,0.8581843]
[1723122077652,83.71,155.89,155.8,0.8581843]
[1723122077809,0.17,155.88,155.85,6.4163]
[1723122078014,0.17,155.88,155.8,0.8581843]
[1723122078015,0.17,155.88,155.83,6.417]
[1723122078234,0.17,155.88,155.85,6.4163]
[1723122078537,38.54,155.86,155.81,6.418]
[1723122078836,44.9577,155.82,155.8,0.8581843]
[1723122079134,85.15769976,155.81,155.8,0.8581843]
[1723122080219,45.34,155.81,155.8,0.8581843]
[1723122080444,31.27769976,155.85,155.8,0.8581843]
[1723122080445,30.0,155.85,155.82,6.4173]
[1723122080811,6.4173,155.83,155.8,0.8581843]
[1723122081017,30.0,155.85,155.8,0.8581843]
[1723122081236,30.0,155.85,155.82,16.0434]
[1723122081534,68.54,155.85,155.8,0.8581843]
[1723122081714,68.54,155.82,155.8,0.8581843]
[1723122081917,84.98769976,155.81,155.8,0.8581843]
[1723122082115,83.71,155.81,155.8,0.4981843]
[1723122082321,90.128,155.81,155.8,0.4981843]
[1723122082530,83.71,155.81,155.8,0.4981843]
[1723122082722,120.128,155.81,155.8,0.4981843]
[1723122082929,121.40569976,155.81,155.8,0.4981843]
[1723122083718,121.40569976,155.81,155.64,2.14250571]
[1723122083719,38.54,155.77,155.7,16.0561]
[1723122083920,31.44769976,155.81,155.64,0.8581843]
[1723122083921,38.54,155.72,155.64,0.8581843]
[1723122084131,0.64226076,155.71,155.7,6.4226]
[1723122084537,0.64226076,155.71,155.69,6.4229]
[1723122084724,0.64226076,155.71,155.69,22.4803]
[1723122084925,0.64226076,155.71,155.7,6.4226]
[1723122085131,0.64226076,155.71,155.69,16.0574]
[1723122085336,0.64226076,155.71,155.7,6.4226]
[1723122085524,0.64226076,155.71,155.69,16.0574]
[1723122085525,0.64226076,155.71,155.69,22.4803]
[1723122085717,0.64226076,155.71,155.66,16.0603]
[1723122085927,0.34,155.7,155.69,6.423]
[1723122086569,30.34,155.7,155.66,6.4242]
[1723122086752,46.27769976,155.69,155.66,6.4242]
[1723122087059,0.34,155.68,155.66,6.4242]
[1723122087240,0.34,155.68,155.67,6.4238]
[1723122087452,0.64226076,155.71,155.7,6.4226]
[1723122087645,0.81226076,155.71,155.69,6.4229]
[1723122087836,0.34,155.7,155.69,6.4229]
[1723122088044,0.34,155.7,155.64,0.8581843]
[1723122088453,0.34,155.7,155.66,6.4239]
[1723122088651,0.34,155.7,155.65,16.0615]
[1723122088652,70.15769976,155.7,155.65,16.0615]
[1723122088843,45.0,155.69,155.68,6.4234]
[1723122089042,45.17,155.69,155.67,6.4238]
[1723122089249,1.61769976,155.68,155.64,7.2830843]
[1723122089560,1.27769976,155.67,155.65,22.4854]
[1723122089740,0.34,155.68,155.67,6.4238]
[1723122090067,0.64226076,155.71,155.64,0.8581843]
[1723122090365,1.61769976,155.7,155.65,6.4243]
[1723122090537,38.88,155.7,155.64,7.2828843]
[1723122090740,38.88,155.7,155.64,0.8581843]
[1723122090741,30.0,155.68,155.64,0.8581843]
[1723122090949,30.0,155.68,155.67,6.4238]
[1723122091254,0.64226076,155.71,155.7,6.4226]
[1723122092042,0.64226076,155.71,155.67,6.4237]
[1723122092243,38.54,155.7,155.66,22.4842]
[1723122092460,83.71,155.69,155.65,6.4245]
[1723122092647,84.98769976,155.69,155.65,6.4245]
[1723122092850,0.17,155.68,155.65,16.0608]
[1723122093156,0.17,155.68,155.67,6.4238]
[1723122093540,0.64226076,155.71,155.64,0.8581843]
[1723122093739,0.64226076,155.71,155.7,6.4226]
[1723122094147,0.64226076,155.71,155.68,16.0585]
[1723122094349,39.18226076,155.71,155.68,6.4234]
[1723122094555,39.18226076,155.71,155.64,0.8581843]
[1723122094752,40.45996052,155.71,155.64,0.8581843]
[1723122094969,39.18226076,155.71,155.64,0.8581843]
[1723122095150,1.27769976,155.7,155.66,6.4238]
[1723122095348,0.34,155.69,155.67,6.4237]
[1723122095547,0.34,155.69,155.66,6.4241]
[1723122095868,38.54,155.68,155.64,23.3453843]
[1723122096065,0.17,155.67,155.64,23.3453843]
[1723122096263,85.15769976,155.67,155.64,0.8581843]
[1723122096874,38.54,155.65,155.64,0.8581843]
[1723122097171,109.4746,155.65,155.64,0.8581843]
[1723122097370,91.58229976,155.65,155.64,0.4981843]
[1723122097949,121.58229976,155.65,155.64,0.4981843]
[1723122098173,121.58229976,155.65,155.51,12.6307]
[1723122098174,38.54,155.55,155.41,12.2355]
[1723122098367,38.54,155.58,155.41,13.52191858]
[1723122098570,1.27769976,155.57,155.41,32.2355]
[1723122098896,45.0,155.57,155.43,20.0]
[1723122099057,45.0,155.57,155.41,12.2355]
[1723122099058,45.0,155.57,155.42,0.54447847]
[1723122099248,45.0,155.57,155.41,32.78106329]
[1723122099447,0.34,155.56,155.41,12.78102818]
[1723122099654,1.27769976,155.55,155.42,20.0]
[1723122099854,0.34,155.54,155.41,32.2355]
[1723122100053,0.17,155.54,155.41,32.2355]
[1723122100357,0.17,155.55,155.41,32.2355]
[1723122101081,0.17,155.55,155.42,20.0]
[1723122101379,38.71,155.55,155.42,20.0]
[1723122101547,46.44769976,155.54,155.42,20.0]
[1723122101974,1.44769976,155.53,155.42,20.0]
[1723122102175,1.44769976,155.52,155.41,12.2355]
[1723122102387,0.17,155.51,155.41,12.2355]
[1723122102555,83.88,155.51,155.41,12.2355]
[1723122102753,46.27769976,155.5,155.41,12.2355]
[1723122102966,0.34,155.49,155.41,12.2355]
[1723122104254,0.34,155.49,155.39,30.771]
[1723122104752,81.99933852,155.49,155.36,13.2025]
[1723122104960,38.54,155.45,155.36,13.2025]
[1723122105238,38.54,155.47,155.36,13.2025]
[1723122105377,45.17,155.44,155.36,13.2025]
[1723122105558,0.17,155.43,155.36,13.2025]
[1723122105756,0.17,155.44,155.36,13.2025]
[1723122106087,36.68813852,155.49,155.36,33.2025]
[1723122106088,30.0,155.49,155.36,33.2025]
[1723122106252,38.54,155.53,155.36,33.2025]
[1723122106455,38.54,155.53,155.36,13.2025]
[1723122106671,38.54,155.53,155.37,1.28669456]
[1723122106877,39.81769976,155.53,155.37,1.49528646]
[1723122107063,38.54,155.53,155.37,66.49528646]
[1723122107379,39.81769976,155.57,155.41,20.0]
[1723122107706,38.54,155.57,155.43,32.7358]
[1723122107858,38.54,155.57,155.44,21.28604246]
[1723122108054,1.27769976,155.61,155.45,45.0]
[1723122108260,1.27769976,155.61,155.43,32.7358]
[1723122108261,39.81769976,155.6,155.46,20.0]
[1723122108456,38.54,155.57,155.46,20.0]
[1723122108680,38.54,155.55,155.44,20.0]
[1723122109088,1.27769976,155.54,155.44,20.0]
[1723122109589,0.34,155.53,155.44,20.0]
[1723122111393,38.54,155.51,155.43,12.7358]
[1723122111570,38.54,155.49,155.43,12.7358]
[1723122111768,45.34,155.5,155.38,30.3723]
[1723122111769,38.54,155.47,155.38,30.3723]
[1723122111973,1.61769976,155.46,155.38,30.3723]
[1723122112191,1.27769976,155.45,155.38,30.3723]
[1723122112384,0.17,155.44,155.38,30.3723]
[1723122112567,1.27769976,155.43,155.38,30.3723]
[1723122112891,0.34,155.42,155.38,30.3723]
[1723122113203,0.34,155.42,155.37,13.3626919]
[1723122114192,0.34,155.42,155.37,0.2085919]
[1723122114570,30.0,155.42,155.37,0.2085919]
[1723122114766,0.34,155.41,155.37,0.2085919]
[1723122115888,38.54,155.45,155.37,0.2085919]
[1723122116195,39.81769976,155.45,155.37,0.2085919]
[1723122117072,39.81769976,155.44,155.37,0.2085919]
[1723122117268,38.54,155.42,155.37,0.2085919]
[1723122117498,46.61769976,155.41,155.37,0.2085919]
[1723122118300,30.0,155.4,155.37,0.2085919]
[1723122118464,45.34,155.39,155.37,0.2085919]
[1723122119395,46.61769976,155.39,155.37,0.2085919]
[1723122119602,45.34,155.39,155.37,0.2085919]
[1723122120098,83.88,155.39,155.37,0.2085919]
[1723122120303,30.0,155.38,155.37,0.2085919]
[1723122120503,30.34,155.38,155.37,0.2085919]
[1723122120683,75.34,155.38,155.37,0.2085919]
[1723122121176,113.88,155.38,155.37,0.2085919]
[1723122121379,82.02330198,155.38,155.29,0.8438099]
[1723122121595,45.34,155.37,155.29,0.8438099]
[1723122121974,30.0,155.38,155.29,0.8438099]
[1723122122592,7.95912166,155.44,155.29,0.8438099]
[1723122122788,38.54,155.4,155.29,0.8438099]
[1723122123199,68.54,155.36,155.29,0.8438099]
[1723122123905,0.34,155.35,155.29,0.8438099]
[1723122124104,0.64226076,155.3,155.29,0.8438099]
[1723122124903,39.81769976,155.44,155.31,12.4893]
[1723122125101,44.9746,155.41,155.31,12.4893]
[1723122125609,6.68198303,155.42,155.31,12.4893]
[1723122125775,38.54,155.43,155.32,20.0]
[1723122127106,6.67789305,155.44,155.33,1.2866563]
[1723122127308,38.54,155.47,155.33,46.2866563]
[1723122127522,12.1401,155.53,155.34,20.17]
[1723122127675,51.14779976,155.52,155.35,46.45667864]
[1723122127872,14.3869052,155.51,155.35,45.0]
[1723122128076,38.54,155.5,155.36,20.0]
[1723122128308,76.701,155.56,155.39,31.8403]
[1723122128506,6.4295,155.54,155.4,20.0]
[1723122128713,1.27769976,155.53,155.4,20.0]
[1723122128997,7.70739976,155.53,155.4,20.0]
[1723122129197,38.54,155.53,155.4,20.0]
[1723122129786,19.5057,155.64,155.43,12.9074]
[1723122129978,43.44,155.66,155.46,30.4838]
[1723122130213,13.0805,155.69,155.48,12.9074]
[1723122130376,43.44,155.7,155.49,40.34]
[1723122130600,43.44,155.66,155.5,45.0]
[1723122130782,1.27769976,155.65,155.51,20.0]
[1723122130984,43.44,155.66,155.51,20.0]
[1723122130985,1.27769976,155.64,155.51,20.0]
[1723122131183,44.9671,155.6,155.49,20.0]
[1723122131402,43.44,155.62,155.49,20.0]
[1723122131885,1.27769976,155.66,155.49,21.28560344]
[1723122132081,1.27769976,155.66,155.5,45.0]
[1723122132406,1.27769976,155.66,155.51,20.0]
[1723122132914,39.81769976,155.67,155.52,45.0]
[1723122133208,38.54,155.67,155.53,20.0]
[1723122133518,38.54,155.67,155.54,45.0]
[1723122133679,38.54,155.72,155.56,44.3879]
[1723122133883,38.54,155.72,155.57,65.0]
[1723122134084,49.8604,155.76,155.57,65.0]
[1723122134304,1.27769976,155.75,155.58,1.28498788]
[1723122134518,1.27769976,155.75,155.57,65.0]
[1723122134687,6.4189,155.79,155.6,20.0]
[1723122134891,1.27769976,155.77,155.61,66.62440346]
[1723122135098,1.27769976,155.77,155.61,66.28440346]
[1723122135510,16.48080011,155.78,155.62,0.17]
[1723122135677,55.02080011,155.78,155.63,1.28442665]
[1723122135884,6.68191417,155.81,155.64,12.4116]
[1723122136105,7.69529976,155.82,155.66,33.0379]
[1723122136294,43.44,155.79,155.66,33.0379]
[1723122136499,1.27769976,155.78,155.66,33.0379]
[1723122136796,38.54,155.71,155.64,12.2416]
[1723122136985,38.54,155.69,155.64,12.2416]
[1723122137192,38.54,155.69,155.59,32.104]
[1723122137404,6.4218,155.72,155.59,32.104]
[1723122137607,1.27769976,155.74,155.59,32.104]
[1723122137608,45.17,155.71,155.59,32.104]
[1723122137820,0.17,155.71,155.6,1.2847154]
[1723122138104,0.17,155.69,155.59,32.104]
[1723122138309,6.423,155.69,155.59,32.104]
[1723122138616,1.61769976,155.68,155.59,32.104]
[1723122138907,38.54,155.67,155.59,32.104]
[1723122139083,0.17,155.66,155.59,32.104]
[1723122139285,0.34,155.68,155.59,32.104]
[1723122139484,0.17,155.67,155.59,32.104]
[1723122139709,30.17,155.68,155.59,32.104]
[1723122139901,0.17,155.67,155.59,32.104]
[1723122140105,30.17,155.68,155.59,32.104]
[1723122140395,6.4223,155.71,155.6,20.0]
[1723122140582,6.4218,155.72,155.6,20.0]
[1723122140785,38.54,155.7,155.6,20.0]
[1723122140986,38.54,155.7,155.59,32.104]
[1723122140987,38.54,155.69,155.59,32.104]
[1723122141289,38.54,155.64,155.58,12.1159]
[1723122141498,83.88,155.63,155.58,12.1159]
[1723122141810,38.54,155.59,155.52,44.9296]
[1723122141999,0.17,155.58,155.52,12.4286]
[1723122142200,0.17,155.55,155.52,12.4286]
[1723122142742,38.54,155.54,155.46,44.7201]
[1723122142909,46.44769976,155.53,155.46,44.7201]
[1723122143136,0.34,155.53,155.46,44.7201]
[1723122143912,38.54,155.51,155.4,12.7725]
[1723122144096,39.18325229,155.47,155.4,12.7725]
[1723122144310,113.88,155.46,155.34,12.9533]
[1723122144610,44.9738,155.43,155.34,12.9533]
[1723122144811,83.88,155.42,155.34,12.9533]
[1723122145008,45.34,155.42,155.34,12.9533]
[1723122145599,0.34,155.42,155.34,12.9533]
[1723122146126,38.54,155.46,155.34,12.9533]
[1723122146413,0.34,155.45,155.34,12.9533]
[1723122146588,0.34,155.46,155.34,12.9533]
[1723122146788,38.88,155.46,155.34,12.9533]
[1723122147022,45.0,155.45,155.35,20.0]
[1723122147222,0.17,155.44,155.35,20.0]
[1723122147421,0.34,155.46,155.35,20.0]
[1723122148211,0.34,155.46,155.36,46.28645472]
[1723122148412,0.34,155.46,155.37,20.0]
[1723122149002,0.17,155.46,155.37,20.0]
[1723122149191,0.64325229,155.47,155.38,46.28658399]
[1723122149394,0.64325229,155.47,155.38,45.0]
[1723122149599,0.64325229,155.47,155.39,20.0]
[1723122149907,0.64325229,155.47,155.37,20.0]
[1723122150415,0.64325229,155.47,155.35,20.0]
[1723122150716,0.17,155.46,155.35,20.0]
[1723122150908,0.34,155.46,155.35,20.0]
[1723122152414,0.64325229,155.47,155.36,40.34]
[1723122152741,0.64325229,155.47,155.4,32.5373]
[1723122152892,0.64325229,155.47,155.41,65.34]
[1723122153099,0.64325229,155.47,155.41,65.0]
[1723122153293,0.64325229,155.47,155.42,0.17]
[1723122153524,0.64325229,155.47,155.43,12.8079]
[1723122153711,0.64325229,155.47,155.44,65.0]
[1723122154025,0.64325229,155.47,155.44,20.0]
[1723122156232,0.64325229,155.47,155.45,1.28582052]
[1723122156522,0.64325229,155.47,155.44,20.0]
[1723122156926,0.64325229,155.47,155.4,32.5373]
[1723122157136,0.64325229,155.47,155.41,21.28660846]
[1723122157301,0.64325229,155.47,155.41,20.0]
[1723122157796,0.64325229,155.47,155.42,1.28631845]
[1723122157999,0.64325229,155.47,155.42,46.28631845]
[1723122158230,43.44,155.64,155.44,32.3967]
[1723122158399,55.6289,155.68,155.45,86.62563774]
[1723122158598,1.27769976,155.65,155.46,1.28568362]
[1723122158915,38.54,155.59,155.45,65.0]
[1723122159313,44.9674,155.59,155.45,65.0]
[1723122159525,38.54,155.57,155.46,1.28604998]
[1723122159821,38.54,155.54,155.44,12.3967]
[1723122160001,0.17,155.53,155.44,12.3967]
[1723122160620,0.34,155.53,155.4,46.54116212]
[1723122160823,38.54,155.52,155.4,46.54116212]
[1723122161041,38.54,155.5,155.4,45.2552]
[1723122161201,0.34,155.49,155.4,45.2552]
[1723122161399,45.34,155.49,155.4,45.2552]
[1723122161610,38.54,155.48,155.4,45.2552]
[1723122161931,45.34,155.47,155.4,45.2552]
[1723122162233,83.88,155.47,155.35,45.1547]
[1723122162435,38.54,155.45,155.3,45.0688]
[1723122162643,0.34,155.44,155.31,1.2870709]
[1723122162842,0.34,155.44,155.31,21.2870709]
[1723122163133,30.0,155.46,155.31,41.2870709]
[1723122163311,45.17,155.45,155.44,202.531439]
[1723122163636,83.88,155.45,155.44,202.531439]
[1723122164134,114.52333505,155.45,155.44,202.531439]
[1723122164430,120.95623505,155.45,155.44,202.531439]
[1723122164634,120.95623505,155.45,155.44,200.89373924]